bitfinex/quotes_BTCUSD_20241107
["timestamp","ask_amount","ask_price","bid_price","bid_amount"]
[1730939092182,0.315193,75320.0,75319.0,0.00498065]
[1730939092434,0.292193,75320.0,75319.0,0.00498065]
[1730939092840,0.3710765,75320.0,75319.0,0.00498065]
[1730939093045,0.292193,75320.0,75319.0,0.00498065]
[1730939093254,0.37107773,75320.0,75319.0,0.00498065]
[1730939093882,0.37107773,75320.0,75319.0,0.000834]
[1730939094086,0.292193,75320.0,75319.0,0.00498046]
[1730939094300,0.292193,75320.0,75319.0,0.00498049]
[1730939094515,0.320193,75320.0,75319.0,0.00498049]
[1730939094721,0.367793,75320.0,75319.0,0.00498049]
[1730939094954,0.367793,75320.0,75319.0,0.000834]
[1730939095771,0.367793,75320.0,75319.0,0.00498066]
[1730939095935,0.367793,75320.0,75319.0,0.000834]
[1730939097639,1.144993,75320.0,75319.0,0.000834]
[1730939098720,1.14499648,75320.0,75319.0,0.000834]
[1730939099615,1.06939648,75320.0,75319.0,0.00498066]
[1730939099828,1.14829906,75320.0,75319.0,0.00498039]
[1730939100155,1.06939648,75320.0,75319.0,0.00498039]
[1730939100256,1.06939648,75320.0,75319.0,0.00498041]
[1730939100721,1.14330645,75320.0,75319.0,0.00498041]
[1730939100947,1.06439648,75320.0,75319.0,0.00498041]
[1730939101910,1.00270086,75320.0,75319.0,0.00498041]
[1730939102133,1.06943602,75320.0,75319.0,0.00498041]
[1730939102556,1.16807472,75320.0,75319.0,0.00498041]
[1730939102784,1.16807235,75320.0,75319.0,0.00498041]
[1730939102996,1.09243602,75320.0,75319.0,0.00498041]
[1730939103442,0.39153602,75320.0,75319.0,0.00498041]
[1730939104064,0.39153602,75320.0,75319.0,0.000834]
[1730939104281,0.39153602,75320.0,75319.0,0.0049807]
[1730939104282,0.39653602,75320.0,75319.0,0.0049807]
[1730939104500,0.39653602,75320.0,75319.0,0.000834]
[1730939104943,0.51490246,75320.0,75319.0,0.000834]
[1730939105394,0.50990246,75320.0,75319.0,0.000834]
[1730939105610,0.39153602,75320.0,75319.0,0.000834]
[1730939105825,0.39653602,75320.0,75319.0,0.000834]
[1730939106680,0.39153602,75320.0,75319.0,0.000834]
[1730939107124,0.39653602,75320.0,75319.0,0.000834]
[1730939107334,0.39153602,75320.0,75319.0,0.000834]
[1730939107814,0.39653602,75320.0,75319.0,0.000834]
[1730939108027,0.39153602,75320.0,75319.0,0.000834]
[1730939108239,0.39153602,75320.0,75319.0,0.00498068]
[1730939108447,0.39153602,75320.0,75319.0,0.000834]
[1730939108657,0.39153602,75320.0,75319.0,0.00498072]
[1730939109097,0.39153602,75320.0,75319.0,0.000834]
[1730939109346,1.21923602,75320.0,75319.0,0.000834]
[1730939109558,1.21423602,75320.0,75319.0,0.000834]
[1730939111066,0.94197141,75320.0,75319.0,0.000834]
[1730939111276,0.94197141,75320.0,75311.0,8e-05]
[1730939111277,0.23494879,75312.0,75311.0,8e-05]
[1730939111489,0.66836538,75312.0,75311.0,8e-05]
[1730939111712,0.74723264,75312.0,75311.0,8e-05]
[1730939112395,0.27544276,75301.0,75300.0,0.02026]
[1730939112623,0.26743039,75301.0,75300.0,0.02026]
[1730939112861,0.26043039,75301.0,75300.0,0.02026]
[1730939113108,0.26543039,75301.0,75300.0,0.02026]
[1730939113590,0.39767141,75301.0,75300.0,0.02026]
[1730939113833,0.39967141,75301.0,75300.0,0.02026]
[1730939114526,0.39767141,75301.0,75300.0,0.02026]
[1730939114529,0.39267141,75301.0,75300.0,0.02026]
[1730939114747,0.39767141,75301.0,75300.0,0.02026]
[1730939115416,0.39743549,75301.0,75300.0,0.02026]
[1730939115875,0.49584205,75301.0,75300.0,0.02026]
[1730939116094,0.39743549,75301.0,75300.0,0.02026]
[1730939116337,0.47616009,75301.0,75300.0,0.02026]
[1730939116560,0.39743549,75301.0,75300.0,0.02026]
[1730939118207,1.24832635,75301.0,75300.0,0.02026]
[1730939118428,1.17582635,75301.0,75300.0,0.02026]
[1730939118667,0.94678981,75301.0,75300.0,0.02026]
[1730939119354,1.09200515,75301.0,75300.0,0.02026]
[1730939119574,1.09200515,75301.0,75282.0,0.06214467]
[1730939119575,0.023,75300.0,75282.0,0.06214467]
[1730939119779,0.00434879,75286.0,75283.0,0.00414803]
[1730939119991,0.13224102,75285.0,75284.0,0.00414803]
[1730939120201,0.13724102,75285.0,75284.0,0.00414803]
[1730939120623,0.14158981,75285.0,75284.0,0.00414803]
[1730939124348,0.14158981,75285.0,75278.0,0.001502]
[1730939124581,0.005,75283.0,75278.0,0.001502]
[1730939124811,0.13724102,75283.0,75282.0,0.00414797]
[1730939125259,0.29718378,75283.0,75282.0,0.00414797]
[1730939125478,0.32018378,75283.0,75282.0,0.00414797]
[1730939125697,0.16958981,75283.0,75282.0,0.00414797]
[1730939125930,0.16958981,75283.0,75278.0,0.001502]
[1730939125931,0.03734879,75282.0,75278.0,0.001502]
[1730939126158,0.14158981,75282.0,75278.0,0.001502]
[1730939126381,0.14158981,75282.0,75281.0,0.07241856]
[1730939126835,0.14658981,75282.0,75281.0,0.07241856]
[1730939127089,0.16458981,75282.0,75281.0,0.07325256]
[1730939127360,0.32518378,75282.0,75281.0,0.06910441]
[1730939129259,0.20712819,75282.0,75281.0,0.06910441]
[1730939129512,0.32518378,75282.0,75281.0,0.06910441]
[1730939129759,0.16958981,75282.0,75281.0,0.06910441]
[1730939131847,0.24478981,75282.0,75281.0,0.06910441]
[1730939132801,0.40538378,75282.0,75281.0,0.06910441]
[1730939133022,0.04234879,75279.0,75278.0,0.001502]
[1730939133248,0.29958981,75279.0,75278.0,0.001502]
[1730939134006,1.34238378,75279.0,75278.0,0.001502]
[1730939134224,1.3932923,75279.0,75278.0,0.001502]
[1730939134471,1.34238378,75279.0,75278.0,0.001502]
[1730939134932,1.4012923,75279.0,75278.0,0.001502]
[1730939135385,1.24569833,75279.0,75278.0,0.001502]
[1730939135612,1.22599604,75279.0,75278.0,0.001502]
[1730939136051,1.34238378,75279.0,75278.0,0.001502]
[1730939136760,1.33238378,75279.0,75278.0,0.001502]
[1730939137406,1.34238378,75279.0,75278.0,0.001502]
[1730939137831,1.17678981,75279.0,75278.0,0.001502]
[1730939138050,1.33238378,75279.0,75278.0,0.001502]
[1730939138276,1.34238378,75279.0,75278.0,0.001502]
[1730939138726,1.47462655,75279.0,75278.0,0.001502]
[1730939138939,1.62022052,75279.0,75278.0,0.001502]
[1730939139153,1.47462655,75279.0,75278.0,0.001502]
[1730939139578,1.63022052,75279.0,75278.0,0.001502]
[1730939139791,1.47662655,75279.0,75278.0,0.001502]
[1730939140247,1.67138454,75279.0,75278.0,0.001502]
[1730939140472,1.63222052,75279.0,75278.0,0.001502]
[1730939140690,1.63022052,75279.0,75278.0,0.001502]
[1730939141150,1.66938005,75279.0,75278.0,0.001502]
[1730939141618,0.16924879,75277.0,75276.0,0.08718915]
[1730939142061,0.40148981,75277.0,75276.0,0.08718915]
[1730939142955,0.44064524,75277.0,75276.0,0.08718915]
[1730939143171,0.40148981,75277.0,75276.0,0.08718915]
[1730939143386,0.48317867,75277.0,75276.0,0.08718915]
[1730939143597,0.45402364,75277.0,75276.0,0.08718915]
[1730939144877,1.23122364,75277.0,75276.0,0.08718915]
[1730939145287,1.18868981,75277.0,75276.0,0.08718915]
[1730939145715,1.19068981,75277.0,75276.0,0.08718915]
[1730939145938,1.18868981,75277.0,75276.0,0.08718915]
[1730939147724,1.19068981,75277.0,75276.0,0.08718915]
[1730939148198,1.18868981,75277.0,75276.0,0.08718915]
[1730939148415,1.32093258,75277.0,75276.0,0.08718915]
[1730939148620,1.37966241,75277.0,75276.0,0.08718915]
[1730939148833,1.24741964,75277.0,75276.0,0.08718915]
[1730939149045,1.24941964,75277.0,75276.0,0.08718915]
[1730939149485,1.41350522,75277.0,75276.0,0.08718915]
[1730939149692,1.41150522,75277.0,75276.0,0.08718915]
[1730939149906,1.41350522,75277.0,75276.0,0.08718915]
[1730939150112,1.54374799,75277.0,75276.0,0.08718915]
[1730939150324,1.54574799,75277.0,75276.0,0.08718915]
[1730939150541,1.41150522,75277.0,75276.0,0.08718915]
[1730939150760,1.24742437,75277.0,75276.0,0.08718915]
[1730939150974,1.18868981,75277.0,75276.0,0.08718915]
[1730939151189,1.24742427,75277.0,75276.0,0.08718915]
[1730939151421,1.18868981,75277.0,75276.0,0.08802315]
[1730939151652,1.47750412,75277.0,75276.0,0.08802315]
[1730939152166,1.47751968,75277.0,75276.0,0.08802315]
[1730939152388,1.3332504,75277.0,75276.0,0.08802315]
[1730939153039,1.43113345,75277.0,75276.0,0.08802315]
[1730939153265,0.16994276,75264.0,75253.0,0.00829925]
[1730939153491,0.16524102,75263.0,75254.0,0.00829934]
[1730939153708,0.16524102,75263.0,75262.0,0.0150591]
[1730939154150,0.16524102,75263.0,75262.0,0.02169856]
[1730939154600,0.16024102,75263.0,75262.0,0.02169856]
[1730939154846,0.14224102,75263.0,75262.0,0.02169856]
[1730939155082,0.14224102,75263.0,75262.0,0.01754858]
[1730939155083,0.14658981,75263.0,75262.0,0.01754858]
[1730939155304,0.14158981,75263.0,75262.0,0.02169807]
[1730939155532,0.14658981,75263.0,75262.0,0.02169807]
[1730939156630,0.14158981,75263.0,75262.0,0.02169807]
[1730939157049,0.005,75263.0,75262.0,0.10119807]
[1730939157271,0.01,75269.0,75262.0,0.10949669]
[1730939157483,0.005,75269.0,75263.0,0.01908729]
[1730939157702,0.005,75274.0,75264.0,0.01908729]
[1730939157922,0.005,75274.0,75265.0,0.06648729]
[1730939158146,0.005,75274.0,75266.0,0.09274811]
[1730939158369,0.20389679,75276.0,75267.0,0.02174324]
[1730939158586,0.13224102,75275.0,75267.0,0.02174324]
[1730939158805,0.13224102,75275.0,75268.0,0.01244811]
[1730939159016,0.005,75277.0,75269.0,0.02174273]
[1730939159223,0.13224102,75276.0,75270.0,0.01078728]
[1730939159523,0.005,75277.0,75270.0,0.01078728]
[1730939159524,0.005,75277.0,75271.0,0.01510349]
[1730939159748,0.005,75277.0,75266.0,0.0803]
[1730939159749,0.005,75273.0,75272.0,0.01244668]
[1730939159959,0.005,75273.0,75272.0,0.00829719]
[1730939160623,0.005,75273.0,75272.0,0.02738123]
[1730939161064,0.14658981,75273.0,75272.0,0.02738123]
[1730939163519,0.001668,75278.0,75272.0,0.15628123]
[1730939163747,0.19889679,75276.0,75272.0,0.15628123]
[1730939163962,0.001668,75278.0,75272.0,0.15628123]
[1730939164177,0.19889679,75275.0,75272.0,0.15628123]
[1730939164391,0.001668,75278.0,75272.0,0.15628123]
[1730939165057,0.005,75273.0,75272.0,0.02738123]
[1730939165286,0.14658981,75273.0,75272.0,0.02738123]
[1730939165497,0.033,75272.0,75271.0,0.000834]
[1730939165710,0.16524102,75272.0,75271.0,0.000834]
[1730939166158,0.16958981,75272.0,75271.0,0.000834]
[1730939167018,0.21749717,75272.0,75271.0,0.000834]
[1730939167275,0.25018981,75272.0,75271.0,0.000834]
[1730939168160,0.30906291,75272.0,75271.0,0.000834]
[1730939168593,0.25018981,75272.0,75271.0,0.000834]
[1730939169460,0.30906291,75272.0,75271.0,0.000834]
[1730939170586,0.25018981,75272.0,75271.0,0.000834]
[1730939171491,0.39525986,75272.0,75271.0,0.000834]
[1730939172147,0.52161349,75272.0,75271.0,0.000834]
[1730939172398,0.40025986,75272.0,75271.0,0.000834]
[1730939172635,0.47875733,75272.0,75271.0,0.000834]
[1730939173778,0.44855986,75272.0,75271.0,0.000834]
[1730939174005,0.00434879,75263.0,75262.0,0.0109094]
[1730939174225,0.38415992,75263.0,75262.0,0.01505927]
[1730939174448,0.3891595,75263.0,75262.0,0.0109094]
[1730939174663,0.55531882,75263.0,75262.0,0.0109094]
[1730939174939,0.65361239,75263.0,75262.0,0.0109094]
[1730939176289,0.70191239,75263.0,75262.0,0.0109094]
[1730939177155,0.74438306,75263.0,75262.0,0.0109094]
[1730939177385,1.68088346,75263.0,75262.0,0.0109094]
[1730939177592,1.53328949,75263.0,75262.0,0.0109094]
[1730939178017,1.5340077,75263.0,75262.0,0.0109094]
[1730939178457,1.49081882,75263.0,75262.0,0.0109094]
[1730939179372,1.48314978,75263.0,75262.0,0.0109094]
[1730939179590,1.41951882,75263.0,75262.0,0.0109094]
[1730939179809,1.51780197,75263.0,75262.0,0.0109094]
[1730939180036,1.50780197,75263.0,75262.0,0.0109094]
[1730939180254,1.24892485,75263.0,75262.0,0.0109094]
[1730939180480,0.52731882,75263.0,75262.0,0.0109094]
[1730939180689,0.36117356,75263.0,75262.0,0.0109094]
[1730939180902,0.36117356,75263.0,75262.0,0.01505921]
[1730939181129,0.30218378,75263.0,75262.0,0.01505921]
[1730939181355,0.32518378,75263.0,75262.0,0.01505923]
[1730939181992,0.36451714,75263.0,75262.0,0.01505923]
[1730939182725,0.38418228,75263.0,75262.0,0.0109094]
[1730939182938,0.32518378,75263.0,75262.0,0.0109094]
[1730939183178,0.38918228,75263.0,75262.0,0.0109094]
[1730939183392,0.3891837,75263.0,75262.0,0.0109094]
[1730939184036,0.33018378,75263.0,75262.0,0.0109094]
[1730939184261,0.54452655,75263.0,75262.0,0.0109094]
[1730939184491,0.59132655,75263.0,75262.0,0.0109094]
[1730939184708,0.60426943,75263.0,75262.0,0.0109094]
[1730939185166,0.71626943,75263.0,75262.0,0.0109094]
[1730939185837,0.71426943,75263.0,75262.0,0.0109094]
[1730939186300,1.49146943,75263.0,75262.0,0.0109094]
[1730939187177,1.6237122,75263.0,75262.0,0.0117434]
[1730939187831,1.49146943,75263.0,75262.0,0.0117434]
[1730939188052,1.58976188,75263.0,75262.0,0.0117434]
[1730939188283,1.44466943,75263.0,75262.0,0.0117434]
[1730939188499,1.54296188,75263.0,75262.0,0.0117434]
[1730939188727,1.44466943,75263.0,75262.0,0.0117434]
[1730939188947,1.51329654,75263.0,75262.0,0.0117434]
[1730939189156,1.42966943,75263.0,75262.0,0.0117434]
[1730939189370,1.32045594,75263.0,75262.0,0.0117434]
[1730939189586,1.13835594,75263.0,75262.0,0.0117434]
[1730939190712,1.07438378,75263.0,75262.0,0.0117434]
[1730939190945,1.10238378,75263.0,75262.0,0.0117434]
[1730939191592,0.98610362,75263.0,75262.0,0.0117434]
[1730939191813,0.94678981,75263.0,75262.0,0.0117434]
[1730939192236,0.16958981,75263.0,75262.0,0.0117434]
[1730939192445,0.32518378,75263.0,75262.0,0.0117434]
[1730939192887,0.32018378,75263.0,75262.0,0.0117434]
[1730939193099,0.16958981,75263.0,75262.0,0.0117434]
[1730939193534,0.32518378,75263.0,75262.0,0.01589321]
[1730939193738,0.36449605,75263.0,75262.0,0.0117434]
[1730939194383,0.32518378,75263.0,75262.0,0.0117434]
[1730939194596,0.16958981,75263.0,75262.0,0.0158932]
[1730939195482,0.17458981,75263.0,75262.0,0.0158932]
[1730939195691,0.38915072,75263.0,75262.0,0.0117434]
[1730939196121,0.32518378,75263.0,75262.0,0.0117434]
[1730939196338,0.36449599,75263.0,75262.0,0.0117434]
[1730939196548,0.32518378,75263.0,75262.0,0.01589325]
[1730939196984,0.36949599,75263.0,75262.0,0.01589325]
[1730939197201,0.36449599,75263.0,75262.0,0.0117434]
[1730939197641,0.36949599,75263.0,75262.0,0.0117434]
[1730939197845,0.36449599,75263.0,75262.0,0.0117434]
[1730939198117,0.3601472,75263.0,75262.0,0.0117434]
[1730939198336,0.56798378,75263.0,75262.0,0.0117434]
[1730939198555,0.71309419,75263.0,75262.0,0.0117434]
[1730939198816,2.34533696,75263.0,75262.0,0.0117434]
[1730939199027,2.44360146,75263.0,75262.0,0.0117434]
[1730939199451,0.81135869,75263.0,75262.0,0.0117434]
[1730939199658,0.70809419,75263.0,75262.0,0.0117434]
[1730939199900,2.91199098,75263.0,75262.0,0.0117434]
[1730939200128,2.81135869,75263.0,75262.0,0.0117434]
[1730939201238,2.31135869,75263.0,75262.0,0.0117434]
[1730939201658,2.21309419,75263.0,75262.0,0.0117434]
[1730939202109,3.87639543,75263.0,75262.0,0.0117434]
[1730939202324,3.87639543,75263.0,75250.0,0.03]
[1730939202325,0.27884276,75251.0,75250.0,0.03]
[1730939202538,0.32518378,75251.0,75250.0,0.03415047]
[1730939203014,0.32518378,75251.0,75238.0,0.19889679]
[1730939203015,0.005,75242.0,75238.0,0.19889679]
[1730939203247,0.13224102,75241.0,75239.0,0.00664083]
[1730939203502,0.15524102,75241.0,75240.0,0.00664083]
[1730939204220,0.29578981,75241.0,75240.0,0.00664083]
[1730939204446,0.01434879,75235.0,75234.0,0.17369888]
[1730939204661,0.16958981,75235.0,75234.0,0.17369888]
[1730939205719,0.14158981,75235.0,75234.0,0.17369888]
[1730939206153,0.14158981,75235.0,75234.0,0.18034029]
[1730939207468,0.14158981,75235.0,75234.0,0.17369888]
[1730939207690,0.16458981,75235.0,75234.0,0.17369888]
[1730939208379,0.16958981,75235.0,75234.0,0.17369888]
[1730939209240,0.40808378,75235.0,75234.0,0.17369888]
[1730939211503,0.29177851,75235.0,75234.0,0.17369888]
[1730939211707,0.25248981,75235.0,75234.0,0.17369888]
[1730939211917,0.25248981,75235.0,75234.0,0.17453388]
[1730939212131,0.25415981,75235.0,75234.0,0.17453388]
[1730939212346,0.87854973,75235.0,75234.0,0.17453388]
[1730939212568,0.47712592,75235.0,75234.0,0.17453388]
[1730939212794,0.47512592,75235.0,75234.0,0.17453388]
[1730939213024,0.60738255,75235.0,75234.0,0.17453388]
[1730939213241,0.60938255,75235.0,75234.0,0.17453388]
[1730939213715,0.76497652,75235.0,75234.0,0.13706883]
[1730939213927,2.34629754,75235.0,75234.0,0.13706883]
[1730939214138,2.34829754,75235.0,75234.0,0.13706883]
[1730939214363,2.4120666,75235.0,75234.0,0.08593288]
[1730939214624,2.4120666,75235.0,75224.0,0.001504]
[1730939214625,0.73694879,75231.0,75224.0,0.001504]
[1730939214858,1.14209397,75231.0,75224.0,0.001504]
[1730939215094,1.14209397,75231.0,75215.0,0.0200875]
[1730939215095,0.14234879,75216.0,75215.0,0.0200875]
[1730939215306,0.15234879,75216.0,75215.0,0.0200875]
[1730939215540,0.03234879,75216.0,75215.0,0.0200875]
[1730939215753,0.03734879,75216.0,75215.0,0.0200875]
[1730939215992,0.14658981,75216.0,75215.0,0.0200875]
[1730939217484,0.16958981,75216.0,75215.0,0.0200875]
[1730939219430,0.26934879,75216.0,75215.0,0.0200875]
[1730939219869,0.24688981,75216.0,75215.0,0.0200875]
[1730939221466,0.39858981,75216.0,75215.0,0.0200875]
[1730939222773,0.40858981,75216.0,75215.0,0.0200875]
[1730939222992,0.40858981,75216.0,75215.0,0.1200875]
[1730939223459,0.14158981,75216.0,75215.0,0.1200875]
[1730939223687,0.14158981,75216.0,75215.0,0.1150875]
[1730939223934,0.14658981,75216.0,75215.0,0.1150875]
[1730939224139,0.14658981,75216.0,75215.0,0.11923951]
[1730939224354,0.14658981,75216.0,75215.0,0.12007451]
[1730939224579,0.16958981,75216.0,75215.0,0.12007451]
[1730939224813,0.16958981,75216.0,75215.0,0.1159225]
[1730939229353,0.1872483,75216.0,75215.0,0.1159225]
[1730939229560,0.16958981,75216.0,75215.0,0.1159225]
[1730939231873,0.16458981,75216.0,75215.0,0.1159225]
[1730939232078,0.13224102,75216.0,75215.0,0.1159225]
[1730939232280,0.14158981,75216.0,75215.0,0.1159225]
[1730939233249,0.13224102,75216.0,75215.0,0.1159225]
[1730939234461,0.15958981,75216.0,75215.0,0.1159225]
[1730939234689,0.16458981,75216.0,75215.0,0.1159225]
[1730939235095,0.16958981,75216.0,75215.0,0.1159225]
[1730939241397,0.14658981,75216.0,75215.0,0.1159225]
[1730939241825,0.14158981,75216.0,75215.0,0.1159225]
[1730939242046,0.14658981,75216.0,75215.0,0.1159225]
[1730939242721,0.14158981,75216.0,75215.0,0.1159225]
[1730939242928,0.14658981,75216.0,75215.0,0.1159225]
[1730939244416,0.14658981,75216.0,75215.0,0.12671742]
[1730939244626,0.14658981,75216.0,75215.0,0.1267174]
[1730939244837,0.14158981,75216.0,75215.0,0.1267174]
[1730939245076,0.14658981,75216.0,75215.0,0.13502116]
[1730939246151,0.16958981,75216.0,75215.0,0.13502116]
[1730939246367,0.16958981,75216.0,75215.0,0.1267174]
[1730939247050,0.16958981,75216.0,75215.0,0.13502125]
[1730939247051,0.14658981,75216.0,75215.0,0.13502125]
[1730939247933,0.14224102,75216.0,75215.0,0.13502125]
[1730939248148,0.14224102,75216.0,75215.0,0.1159225]
[1730939248368,0.14658981,75216.0,75215.0,0.13502103]
[1730939249685,0.16958981,75216.0,75215.0,0.13502103]
[1730939249902,0.16958981,75216.0,75215.0,0.12671732]
[1730939250636,0.20875423,75216.0,75215.0,0.12671732]
[1730939251526,0.16958981,75216.0,75215.0,0.12671732]
[1730939251781,0.16958981,75216.0,75215.0,0.12007435]
[1730939252000,0.16958981,75216.0,75215.0,0.13087025]
[1730939252639,0.22833644,75216.0,75215.0,0.13087025]
[1730939253279,0.22833644,75216.0,75215.0,0.1308704]
[1730939253493,0.22833644,75216.0,75215.0,0.12422662]
[1730939253494,0.16958981,75216.0,75215.0,0.12422662]
[1730939253737,0.22833644,75216.0,75215.0,0.12422662]
[1730939253957,0.22863986,75216.0,75215.0,0.12422662]
[1730939254432,0.24588981,75216.0,75215.0,0.12422662]
[1730939254639,0.39127808,75216.0,75215.0,0.12422662]
[1730939255050,0.47001714,75216.0,75215.0,0.12422662]
[1730939255233,0.47001714,75216.0,75215.0,0.12007435]
[1730939255482,0.47001714,75216.0,75215.0,0.12422676]
[1730939256141,0.39371714,75216.0,75215.0,0.12422676]
[1730939256351,0.14658981,75216.0,75215.0,0.12422676]
[1730939256786,0.20567474,75216.0,75215.0,0.12422676]
[1730939257039,0.29199274,75216.0,75215.0,0.12422676]
[1730939257665,0.37075265,75216.0,75215.0,0.12422676]
[1730939257888,0.29199274,75216.0,75215.0,0.12422676]
[1730939258538,0.30430548,75216.0,75215.0,0.12422676]
[1730939258955,0.30430548,75216.0,75215.0,0.12422662]
[1730939258956,0.30430556,75216.0,75215.0,0.12422662]
[1730939259171,0.16057263,75216.0,75215.0,0.12422662]
[1730939259379,0.30600489,75216.0,75215.0,0.12422662]
[1730939260437,0.29369207,75216.0,75215.0,0.12422662]
[1730939260666,0.14825981,75216.0,75215.0,0.12422662]
[1730939261499,0.27934749,75216.0,75215.0,0.12422662]
[1730939261712,0.27934749,75216.0,75215.0,0.13087]
[1730939261713,0.17331284,75216.0,75215.0,0.13087]
[1730939261916,0.13891102,75216.0,75215.0,0.13087]
[1730939262091,0.17831284,75216.0,75215.0,0.13087]
[1730939262341,0.17831284,75216.0,75215.0,0.12422662]
[1730939262545,0.17831284,75216.0,75215.0,0.12671755]
[1730939262765,0.17831284,75216.0,75215.0,0.12007435]
[1730939262969,0.13391102,75216.0,75215.0,0.12671754]
[1730939263599,0.13391102,75216.0,75215.0,0.13086952]
[1730939263811,0.13391102,75216.0,75215.0,0.12671767]
[1730939265757,0.13391102,75216.0,75215.0,0.13502113]
[1730939266134,0.13391102,75216.0,75215.0,0.13501977]
[1730939268369,0.35135378,75216.0,75215.0,0.13501977]
[1730939268590,0.35135378,75216.0,75215.0,0.12671661]
[1730939268591,0.61976937,75216.0,75215.0,0.12671661]
[1730939268796,0.75896854,75216.0,75215.0,0.1109225]
[1730939269042,2.41818609,75216.0,75215.0,0.1109225]
[1730939269245,2.47629145,75216.0,75215.0,0.1109225]
[1730939269651,2.37715289,75216.0,75215.0,0.1109225]
[1730939269854,2.37715289,75216.0,75209.0,8e-05]
[1730939269855,0.03734879,75210.0,75209.0,8e-05]
[1730939270028,0.26805807,75210.0,75209.0,8e-05]
[1730939270230,0.55640593,75210.0,75209.0,8e-05]
[1730939270508,0.49581196,75210.0,75209.0,8e-05]
[1730939271135,0.57456003,75210.0,75209.0,8e-05]
[1730939271331,0.47456003,75210.0,75209.0,8e-05]
[1730939272220,0.39581196,75210.0,75209.0,8e-05]
[1730939273429,0.16958981,75210.0,75209.0,8e-05]
[1730939273773,0.13224102,75210.0,75209.0,0.00423261]
[1730939274192,0.13724102,75210.0,75209.0,0.00423261]
[1730939274417,0.2430525,75210.0,75209.0,0.00423261]
[1730939274587,0.26365688,75210.0,75209.0,0.00423261]
[1730939274801,0.24728981,75210.0,75209.0,0.00423261]
[1730939275209,0.25228981,75210.0,75209.0,0.00423261]
[1730939276178,0.25228981,75210.0,75209.0,8e-05]
[1730939276987,0.005,75203.0,75201.0,0.003088]
[1730939277210,0.13224102,75202.0,75201.0,0.003088]
[1730939277386,0.13224102,75202.0,75201.0,0.00724083]
[1730939279057,0.13724102,75202.0,75201.0,0.00724083]
[1730939279903,0.16458981,75202.0,75201.0,0.00724083]
[1730939280106,0.16958981,75202.0,75201.0,0.00724083]
[1730939280678,0.14224102,75202.0,75201.0,0.00724083]
[1730939281119,0.13224102,75202.0,75201.0,0.01388546]
[1730939281537,0.005,75210.0,75201.0,0.14028546]
[1730939281742,0.19889679,75208.0,75202.0,0.01079746]
[1730939281949,0.13224102,75207.0,75203.0,0.00987176]
[1730939282164,0.13224102,75207.0,75204.0,0.00415283]
[1730939282597,0.13224102,75207.0,75205.0,0.00415283]
[1730939282810,0.13224102,75207.0,75206.0,0.00415248]
[1730939283025,0.16458981,75207.0,75206.0,0.00415248]
[1730939283665,0.13724102,75207.0,75206.0,0.00415248]
[1730939283886,0.13224102,75207.0,75206.0,0.00415248]
[1730939284546,0.12763102,75207.0,75206.0,0.00415248]
[1730939284756,0.13263102,75207.0,75206.0,0.00415248]
[1730939286054,0.13263102,75207.0,75206.0,0.008305]
[1730939289693,0.13263102,75207.0,75206.0,0.00830499]
[1730939290128,0.13263102,75207.0,75206.0,0.00415248]
[1730939290765,0.12763102,75207.0,75206.0,0.00415248]
[1730939291200,0.12763102,75207.0,75206.0,0.00830473]
[1730939292017,0.12763102,75207.0,75206.0,0.01494832]
[1730939294008,0.12763102,75207.0,75206.0,0.00415235]
[1730939294215,0.62963372,75207.0,75206.0,0.00415235]
[1730939294461,0.24244781,75207.0,75206.0,0.00415235]
[1730939294810,0.005,75204.0,75203.0,0.000834]
[1730939295016,0.20394862,75204.0,75203.0,0.00498688]
[1730939295258,0.16024102,75204.0,75203.0,0.00498688]
[1730939295461,0.13724102,75204.0,75203.0,0.00498688]
[1730939296114,0.13224102,75204.0,75203.0,0.0199356]
[1730939296537,0.001668,75207.0,75203.0,0.0199356]
[1730939296744,0.13224102,75206.0,75204.0,0.0191016]
[1730939296946,0.13224102,75206.0,75205.0,0.0191016]
[1730939297484,0.001668,75207.0,75206.0,0.00065121]
[1730939297702,0.999999,75208.0,75207.0,0.00065121]
[1730939297901,0.999999,75208.0,75207.0,0.01975281]
[1730939298738,1.13224002,75208.0,75207.0,0.0191016]
[1730939299333,1.13224002,75208.0,75207.0,0.01079704]
[1730939300625,1.13224002,75208.0,75207.0,0.0191018]
[1730939301656,1.13224002,75208.0,75203.0,0.000834]
[1730939301657,0.3808982,75205.0,75203.0,0.000834]
[1730939301864,0.13224102,75204.0,75203.0,0.000834]
[1730939310256,0.13224102,75204.0,75203.0,0.00913933]
[1730939311656,0.13224102,75204.0,75203.0,0.0157831]
[1730939312416,0.13224102,75204.0,75203.0,0.02147229]
[1730939312612,0.13224102,75204.0,75203.0,0.0157831]
[1730939313726,0.13224102,75204.0,75203.0,0.01993589]
[1730939314138,0.17161011,75204.0,75203.0,0.01993589]
[1730939314992,0.17161011,75204.0,75203.0,0.000834]
[1730939315118,0.17161011,75204.0,75203.0,0.00498682]
[1730939315319,0.19129465,75204.0,75203.0,0.01993694]
[1730939315544,0.19129465,75204.0,75203.0,0.01163131]
[1730939315545,0.13224102,75204.0,75203.0,0.01163131]
[1730939315749,0.17164558,75204.0,75203.0,0.01163131]
[1730939315947,0.03940456,75204.0,75203.0,0.01163131]
[1730939316156,1.3808972,75205.0,75204.0,0.00065121]
[1730939316352,1.35100071,75205.0,75204.0,0.01144852]
[1730939318464,1.35100071,75205.0,75204.0,0.01909971]
[1730939322166,1.35100071,75205.0,75204.0,0.00065121]
[1730939323574,1.35100071,75205.0,75204.0,0.30514518]
[1730939323836,1.35100071,75205.0,75204.0,0.38674518]
[1730939324069,1.35100071,75205.0,75204.0,0.38874518]
[1730939324488,1.35100071,75205.0,75204.0,0.5209862]
[1730939325115,1.35100071,75205.0,75204.0,0.56075109]
[1730939325366,1.35100071,75205.0,75204.0,0.5209862]
[1730939325567,1.35100071,75205.0,75204.0,0.56075109]
[1730939325766,1.35100071,75205.0,75204.0,0.9198962]
[1730939331637,1.35100071,75205.0,75204.0,0.9207302]
[1730939331787,1.35266871,75205.0,75204.0,0.9207302]
[1730939333570,1.35266871,75205.0,75204.0,0.50039521]
[1730939334012,1.35266871,75205.0,75204.0,0.399744]
[1730939334627,1.43306871,75205.0,75204.0,0.399744]
[1730939337149,1.43306871,75205.0,75204.0,0.40389619]
[1730939337552,1.43306871,75205.0,75204.0,0.4105397]
[1730939338803,1.35266871,75205.0,75204.0,0.41119091]
[1730939340575,1.35266871,75205.0,75204.0,0.4105397]
[1730939343877,1.61390973,75205.0,75204.0,0.4105397]
[1730939344120,1.64625852,75205.0,75204.0,0.40389619]
[1730939344342,1.64625852,75205.0,75204.0,0.399744]
[1730939344574,1.65125852,75205.0,75204.0,0.399744]
[1730939351567,1.56400973,75205.0,75204.0,0.399744]
[1730939351759,1.48490973,75205.0,75204.0,0.399744]
[1730939358044,1.49425852,75205.0,75204.0,0.399744]